Cogmind - Beta 15 @@@ ROGUE MODE // 2025.06.02 @ 17:37:51 Player: Xan Kriegor Result: Destroyed by G-47 Trooper with Particle Gun Performance ------------- Evolutions (2) 1000 Regions Visited (5) 1000 Robots Destroyed (87) 435 Value Destroyed (2842) 2842 Prototype IDs (9) 180 Alien Tech Used (0) 0 Bonus (789) 789 TOTAL SCORE: 6246 Bonus ------- High Alert Combat Kills 539 Follower Combat Kills 250 Cogmind --------- Core Integrity 0/550 Matter 68/300 Energy 135/160 System Corruption 0% Temperature Cool (18) Movement Core (500) Ox9 Location -8/Materials Parts ------- > --- POWER (1) -------- Light Nuclear Core > --- PROPULSION (3) --- (None) > --- UTILITY (4) ------ Large Storage Unit Signal Interpreter Core Analyzer > --- WEAPON (3) ------- Improved Light Cannon > --- INVENTORY (15) --- Light Ion Engine Improved Heat Sink Advanced Targeting Computer Particle Charger Peak State ------------ > --- POWER ------------ Cooled Ion Engine > --- PROPULSION ------- Light Treads Light Treads Light Treads > --- UTILITY ---------- Improved Heat Sink Large Storage Unit Signal Interpreter Core Analyzer > --- WEAPON ----------- Heavy Ion Cannon Assault Cannon Flak Cannon > --- INVENTORY -------- Cooled Ion Engine Light Nuclear Core Improved Heat Sink Particle Charger Particle Gun Heavy Ion Cannon Mini Grenade Launcher Improved Grenade Launcher [Rating: 27] Favorites ----------- Power Cooled Ion Engine Engine Cooled Ion Engine Power Core Light Nuclear Core Propulsion Advanced Treads Treads Advanced Treads Leg Aluminum Leg Wheel Wheel Hover Unit Aerolev Unit Utility Signal Interpreter Device Improved Heat Sink Storage Medium Storage Unit Processor Signal Interpreter Protection Light Armor Plating Weapon Advanced Beam Cannon Energy Gun Medium Laser Energy Cannon Advanced Beam Cannon Ballistic Gun Light Assault Rifle Ballistic Cannon Flak Cannon Launcher Rocket Launcher Build | -11 -10 -10 -9 -9 -8 ------- Run | Yrd Mat Min Mat Sto Mat Slots Evolved 4 | . . . 2 . 2 Power . | . . . . . . Propulsion 1 | . . . 1 . . Utility 2 | . . . 1 . 1 Weapon 1 | . . . . . 1 Parts Attached 54 | 7 6 . 8 5 28 Power 6 | 1 1 . 1 . 3 Engine 4 | 1 1 . 1 . 1 Core 2 | . . . . . 2 Reactor . | . . . . . . Propulsion 18 | 2 2 . 3 2 9 Treads 10 | . . . 3 2 5 Leg 2 | . 2 . . . . Wheel 5 | 2 . . . . 3 Hover 1 | . . . . . 1 Flight . | . . . . . . Utility 12 | 1 2 . 1 1 7 Device 4 | . . . 1 1 2 Storage 4 | 1 1 . . . 2 Processor 2 | . 1 . . . 1 Hackware . | . . . . . . Protection 2 | . . . . . 2 Artifact . | . . . . . . Weapon 18 | 3 1 . 3 2 9 Energy Gun 5 | 2 1 . 1 . 1 Energy Cannon 5 | . . . 1 2 2 Ballistic Gun 1 | 1 . . . . . Ballistic Cannon 4 | . . . . . 4 Launcher 3 | . . . 1 . 2 Special Weapon . | . . . . . . Impact Weapon . | . . . . . . Slashing Weapon . | . . . . . . Piercing Weapon . | . . . . . . Special Melee Weapon . | . . . . . . Unidentified Prototypes 3 | . . . 2 . 1 Parts Lost 27 | . . 1 . 3 23 Power 3 | . . . . . 3 Propulsion 13 | . . 1 . 2 10 Utility 2 | . . . . . 2 Weapon 9 | . . . . 1 8 Highest Loss Streak 12 | . . 1 . 1 12 To Critical Strikes . | . . . . . . Average Backups 8 | 3 7 7 9 9 8 Power 1 | . 1 2 2 2 1 Propulsion 1 | 2 4 3 2 1 . Utility 1 | . . . . 1 2 Weapon 3 | . 1 2 3 4 3 Tool/Special . | . . . . . . Unused Backups 12 | . 1 . 2 4 5 Power 4 | . 1 . . 2 1 Propulsion 1 | . . . 1 . . Utility 4 | . . . . . 4 Weapon 3 | . . . 1 2 . Tool/Special . | . . . . . . Average Slot Usage (%) 95 | . 89 100 95 99 94 Engine 10 | . 14 14 11 11 8 Treads 20 | . . . 23 32 19 Leg 3 | . 10 15 6 . . Wheel 4 | . 17 12 . . 3 Device 8 | . . . 10 11 9 Storage 10 | . 14 14 11 11 9 Processor 10 | . 4 14 11 11 12 Protection 1 | . . . . . 4 Energy Gun 5 | . 14 14 2 1 6 Energy Cannon 10 | . . . 1 18 11 Ballistic Gun 4 | . 14 14 10 . . Ballistic Cannon 2 | . . . . . 6 Launcher 1 | . . . 7 1 1 Peak Build Rating 27 | 6 7 8 23 25 27 Average Rating 18 | 3 6 7 17 23 23 On Entrance 10 | . 6 7 8 23 21 Naked Turns . | . . . . . . Heaviest Build 105 | 10 16 16 26 27 105 Greatest Support 66 | 26 26 26 66 66 64 Greatest Overweight (x) 11 | . . 1 1 . 11 Average Overweight (x) . | . . . . . . Largest Inventory Capacity 25 | 8 10 10 10 10 25 Average Capacity 11 | 6 8 10 10 10 14 Most Carried 14 | 8 8 8 10 10 14 Average Carried 8 | 4 7 7 9 9 8 Final Capacity 15 | 8 10 10 10 10 15 Final Carried 10 | 6 8 8 10 9 4 Class Distribution -------------------- 71% | Mutant 17% | Scavenger-Tank 6% | Scavenger-Gunner 3% | Skirmisher Dominant Class ---------------- Mutant | -10/Materials Mutant | -10/Mines Mutant | -9/Materials Mutant | -9/Storage Scavenger-Tank | -8/Materials Resources | -11 -10 -10 -9 -9 -8 ----------- Run | Yrd Mat Min Mat Sto Mat Matter Collected 1309 | 202 58 121 79 304 545 Remotely . | . . . . . . Salvage Created 2635 | . 76 41 59 1002 1457 Parts 150 | . 6 8 6 50 80 Haulers Intercepted 2 | . . . . 2 . Recyclers Shooed 2 | . 1 . . 1 . Parts Field Recycled . | . . . . . . Retrieved Matter . | . . . . . . Parts Self-Destructed . | . . . . . . Prevented . | . . . . . . Kills | -11 -10 -10 -9 -9 -8 ------- Run | Yrd Mat Min Mat Sto Mat Combat Hostiles Destroyed 70 | . 5 3 2 23 37 Guns 14 | . 5 3 1 . 5 Cannons 44 | . . . 1 21 22 AOE 11 | . . . . 1 10 Classes Destroyed 13 | . 1 . 1 4 7 Worker 7 | . . . . 2 5 Builder 2 | . . . . . 2 Hauler 2 | . . . . 2 . Recycler 1 | . . . . . 1 Operator 1 | . . . . . 1 Watcher 4 | . . . . 2 2 Swarmer 16 | . 5 3 1 3 4 Grunt 39 | . . . . 17 22 Brawler 1 | . . . . . 1 Duelist 2 | . . . . . 2 Protector 1 | . . . . . 1 Sentry 10 | . . . 1 3 6 Hunter 1 | . . . . . 1 Best Kill Streak 13 | . 2 3 1 7 13 Combat Bots Only 9 | . 2 3 1 7 9 Max Kills in Single Turn 3 | . 1 2 1 1 3 Gunslinging 1 | . . 1 . . . Exploded 2 | . . . . 1 2 Melee . | . . . . . . Uniques/NPCs Destroyed . | . . . . . . Combat | -11 -10 -10 -9 -9 -8 -------- Run | Yrd Mat Min Mat Sto Mat Hostile Shots Fired 350 | . 26 7 8 84 225 Missed 83 | . 7 . 1 17 58 Hits 267 | . 19 7 7 67 167 Melee 7 | . . . . . 7 Projectile 260 | . 19 7 7 67 160 Critical Strikes 4 | . . . . 1 3 Damage Taken 4414 | . 153 66 73 1244 2878 Core 761 | . 56 . 28 124 553 Absorbed by Shields . | . . . . . . Core Remaining (%) 79 | 100 . 77 . 62 . Volleys Fired 181 | . 15 6 9 74 77 Largest 3 | . 2 2 2 2 3 Hottest 195 | . 70 70 88 136 195 Shots Fired 387 | . 30 12 10 137 198 Gun 86 | . 30 12 9 5 30 Cannon 271 | . . . 1 119 151 Launcher 30 | . . . . 13 17 Special . | . . . . . . Kinetic 96 | . 15 6 9 . 66 Thermal 261 | . 15 6 1 124 115 Explosive 30 | . . . . 13 17 Electromagnetic . | . . . . . . Robot Hit Streak 13 | . 5 3 6 13 13 Robot Miss Streak 4 | . 2 3 2 3 4 Penetration Max . | . . . . . . Secondary Targets 2 | . 1 1 . . . Max Gunslinging Chain 1 | . 1 1 . . . Shots Hit Robots 230 | . 17 6 7 78 122 Core Hits 141 | . 8 4 4 34 91 Critical Kills 1 | . . . . 1 . Critical Parts Destroyed . | . . . . . . Critical Strikes 6 | . 1 1 . 1 3 Burn 4 | . 1 1 . . 2 Meltdown 1 | . . . . 1 . Blast 1 | . . . . . 1 Melee Attacks . | . . . . . . Impact . | . . . . . . Slashing . | . . . . . . Piercing . | . . . . . . Sneak Attacks . | . . . . . . Combat Hostiles . | . . . . . . Follow-up Attacks . | . . . . . . Damage Inflicted 6779 | . 183 75 65 1885 4571 Guns 595 | . 175 63 45 . 312 Cannons 4088 | . . . 20 1637 2431 Explosions 2061 | . . . . 241 1820 Melee . | . . . . . . Ramming 35 | . 8 12 . 7 8 Kinetic 1157 | . 101 24 45 . 987 Thermal 3526 | . 74 39 20 1637 1756 Explosive 2061 | . . . . 241 1820 Electromagnetic . | . . . . . . Impact . | . . . . . . Slashing . | . . . . . . Piercing . | . . . . . . Highest Corruption . | . . . . . . Average Corruption . | . . . . . . Corruption Purged . | . . . . . . Corruption Blocked . | . . . . . . Overload Shots . | . . . . . . Overflow Damage 131 | . . . . 7 124 Projectiles 36 | . . . . 1 35 Explosions 95 | . . . . 6 89 Melee . | . . . . . . Knockbacks 13 | . . . . . 13 Impact . | . . . . . . Kinetic 13 | . . . . . 13 Secondary . | . . . . . . Self-Inflicted Damage 352 | . . . . 194 158 Shots 11 | . . . . 5 6 Rammed 4 | . . . . 2 2 Targets Rammed 7 | . 1 2 . 2 2 Kicked 3 | . 1 2 . . . Crushed . | . . . . . . Highest Temperature 414 | . 90 76 10 414 279 Average Temperature 72 | . 34 34 7 86 72 Received Heat Transfer 1503 | . . 21 6 387 1089 Effects 1 | . . . . . 1 Energy Bleed 1 | . . . . . 1 Siege Activations . | . . . . . . Martial Activations . | . . . . . . Shielding Activations . | . . . . . . Robots Disrupted . | . . . . . . Combat Hostiles . | . . . . . . Robots Corrupted . | . . . . . . Combat Hostiles . | . . . . . . Parts Fried . | . . . . . . Impact Corruptions . | . . . . . . Robots Melted 1 | . . . . 1 . Combat Hostiles 1 | . . . . 1 . Parts Melted 13 | . 1 1 . 6 5 Heat Transferred 6364 | . 296 185 37 2960 2886 Parts Sabotaged . | . . . . . . Parts Stolen . | . . . . . . Parts Stripped . | . . . . . . Power Chain Reactions . | . . . . . . Alert | -11 -10 -10 -9 -9 -8 ------- Run | Yrd Mat Min Mat Sto Mat Maximum Alert Level 3 | . . . . 3 3 Low Security (%) 50 | 100 100 100 100 49 . Level 1 23 | . . . . 30 41 Level 2 21 | . . . . 15 49 Level 3 4 | . . . . 4 9 Level 4 . | . . . . . . Level 5 . | . . . . . . High Security . | . . . . . . Max Security . | . . . . . . Peak Influence 757 | . 80 74 78 710 757 Initial 294 | . . 4 10 24 294 Average 250 | . 34 37 20 241 489 Influence Increases 2825 | . 164 128 168 1132 1233 Destroy 0b10 Robot/C 1580 | . 100 100 120 540 720 Destroy 0b10 Robot/NC 100 | . . . 10 30 60 Destroy Leader 344 | . 20 20 22 118 164 Allied During Kill 32 | . . 8 16 8 . Successful Hack 55 | . 14 . . 23 18 Disable Machine 75 | . . . . 60 15 Anti-Garrison Action 300 | . . . . 150 150 Destroy Structure 204 | . . . . 98 106 Lose Combat Pursuer 135 | . 30 . . 105 . Influence Decreases 2094 | . 152 112 138 492 1200 Entered New Map 464 | . . 8 18 34 404 Time Decay 1156 | . 152 100 80 408 416 Lost Part 264 | . . 4 . 30 230 Lost Ally 60 | . . . 40 20 . Purge Threat 150 | . . . . . 150 Squads Dispatched 17 | . 1 . . 4 12 Investigation 4 | . . . . 2 2 Extermination . | . . . . . . Reinforcement 4 | . 1 . . . 3 Assault 5 | . . . . 2 3 Garrison 4 | . . . . . 4 Intercept . | . . . . . . Searches Triggered . | . . . . . . Construction Impeded 1 | . . . . . 1 Haulers Reinforced . | . . . . . . Active Scanning Responses . | . . . . . . Cargo Convoy Interrupts . | . . . . . . Stealth | -11 -10 -10 -9 -9 -8 --------- Run | Yrd Mat Min Mat Sto Mat Distress Signals 4 | . 1 . . . 3 Communications Jammed . | . . . . . . Distress Signals . | . . . . . . Times Spotted 118 | . 13 3 5 38 59 Peak Tracking Total 11 | . 4 2 3 8 11 Tactical Retreats 6 | . 2 . . 4 . Traps | -11 -10 -10 -9 -9 -8 ------- Run | Yrd Mat Min Mat Sto Mat Traps Triggered 1 | . . . . . 1 Indirectly . | . . . . . . Trap Hack Attempts . | . . . . . . Triggered . | . . . . . . Disarmed . | . . . . . . Reprogrammed . | . . . . . . Reused . | . . . . . . Traps Extracted . | . . . . . . Installed . | . . . . . . Triggered . | . . . . . . Machines | -11 -10 -10 -9 -9 -8 ---------- Run | Yrd Mat Min Mat Sto Mat Machines Disabled 7 | . . . . 5 2 Max in Single Turn 1 | . . . . 1 1 Garrison Access 2 | . . . . 1 1 Machines Repaired . | . . . . . . Machines Dismantled . | . . . . . . Machines Sabotaged . | . . . . . . Overloaded Fab Kills . | . . . . . . Hacking | -11 -10 -10 -9 -9 -8 --------- Run | Yrd Mat Min Mat Sto Mat Machines Accessed 12 | . 4 . . 4 4 Terminals 12 | . 4 . . 4 4 Fabricators . | . . . . . . Repair Stations . | . . . . . . Recycling Units . | . . . . . . Scanalyzers . | . . . . . . Garrison Access . | . . . . . . Total Hacks 44 | . 11 . . 16 17 Successful 20 | . 5 . . 9 6 Failed 24 | . 6 . . 7 11 Catastrophic 5 | . 2 . . 2 1 Database Lockouts . | . . . . . . Manual 29 | . 8 . . 11 10 Terminals 44 | . 11 . . 16 17 Fabricators . | . . . . . . Repair Stations . | . . . . . . Recycling Units . | . . . . . . Scanalyzers . | . . . . . . Garrison Access . | . . . . . . Terminal Hacks 20 | . 5 . . 9 6 Record 2 | . 1 . . 1 . Prototype ID Bank 4 | . . . . 3 1 Branch Access Points 2 | . 1 . . . 1 Alert Level 1 | . . . . . 1 Unreport Threat 1 | . . . . . 1 Locate Traps 4 | . 1 . . 3 . Hauler Manifests 1 | . 1 . . . . Zone Layout 5 | . 1 . . 2 2 Fabricator Hacks . | . . . . . . Repair Station Hacks . | . . . . . . Recycling Unit Hacks . | . . . . . . Scanalyzer . | . . . . . . Garrison Access Hacks . | . . . . . . Unauthorized Hacks . | . . . . . . Terminals . | . . . . . . Fabricators . | . . . . . . Repair Stations . | . . . . . . Recycling Units . | . . . . . . Scanalyzers . | . . . . . . Garrison Access . | . . . . . . Data Cores Recovered 1 | . . . . . 1 Used . | . . . . . . Hacking Detections 12 | . 4 . . 4 4 Full Trace Events 3 | . . . . 2 1 Feedback Events . | . . . . . . Feedback Blocked . | . . . . . . Robot Schematics Acquired . | . . . . . . Robots Built . | . . . . . . Authchips . | . . . . . . Time . | . . . . . . Total Robot Build Rating . | . . . . . . Part Schematics Acquired . | . . . . . . Parts Built . | . . . . . . Authchips . | . . . . . . Time . | . . . . . . Total Part Build Rating . | . . . . . . Parts Repaired . | . . . . . . Time . | . . . . . . Parts Recycled . | . . . . . . Recycled Matter . | . . . . . . Retrieved Matter . | . . . . . . Retrieved Components . | . . . . . . Parts Scanalyzed . | . . . . . . Part Schematics Acquired . | . . . . . . Parts Damaged . | . . . . . . Bothacking | -11 -10 -10 -9 -9 -8 ------------ Run | Yrd Mat Min Mat Sto Mat Used RIF Installer . | . . . . . . Robots Hacked . | . . . . . . Non-combat . | . . . . . . Combat . | . . . . . . Robot Hacks Applied . | . . . . . . Relay Couplers Released 3 | . . . . 3 . Machine Destruction 3 | . . . . 3 . Fabnet Peak Effective % . | . . . . . . Robots Rewired . | . . . . . . Allies Hacked . | . . . . . . Hacks Repelled . | . . . . . . Allies | -11 -10 -10 -9 -9 -8 -------- Run | Yrd Mat Min Mat Sto Mat Total Allies 3 | . . 3 . . . Largest Group 3 | . . 3 3 1 . Highest-Rated Group 40 | . . 40 40 16 . Highest-Rated Ally 16 | . . 16 16 16 . Total Orders 1 | . . 1 . . . AID 1 | . . 1 . . . Ally Attacks 38 | . . 4 19 15 . Total Damage 478 | . . 54 208 216 . Kills 12 | . . 2 6 4 . Allies Corrupted . | . . . . . . Allies Melted . | . . . . . . Intel | -11 -10 -10 -9 -9 -8 ------- Run | Yrd Mat Min Mat Sto Mat Active Infowar (turns) 111 | . . . . . 111 Sensors 111 | . . . . . 111 Robot Analysis Total . | . . . . . . Derelict Logs Recovered 2 | . . 2 . . . Drone Launches . | . . . . . . Drone Recoveries . | . . . . . . Exploration | -11 -10 -10 -9 -9 -8 ------------- Run | Yrd Mat Min Mat Sto Mat Turns Passed 3033 | 57 408 225 354 981 1008 Spaces Moved 1723 | 44 350 187 227 478 437 Core 6 | 5 . . . . 1 Treads 945 | . . . 157 478 310 Legs 256 | . 118 68 70 . . Wheels 516 | 39 232 119 . . 126 Hover . | . . . . . . Flight . | . . . . . . Fastest Speed 50 | 50 90 90 120 145 95 Average Speed 132 | 89 100 100 137 145 158 Slowest Speed 600 | 100 120 120 190 150 600 Overloaded Moves . | . . . . . . Propulsion Burnouts . | . . . . . . Robots Hopped . | . . . . . . Potential Cave-ins . | . . . . . . Cave-ins Triggered 1 | . . . . 1 . Exploration Rate (%) 33 | 3 45 40 17 58 38 Regions Visited 5 Branch Regions 2 Pre-discovered Areas 1 | . . 1 . . . Known Exits Taken 4 | . 1 1 1 1 . Unknown Exits Taken 1 | 1 . . . . . Scrap Searched . | . . . . . . Spaces Dug 29 | . . . . 29 . Terrain Destroyed 236 | . . . . 100 136 Melee . | . . . . . . Projectile 32 | . . . . 1 31 AOE 204 | . . . . 99 105 Terrain Rammed . | . . . . . . Walls Destroyed . | . . . . . . Machines Disabled . | . . . . . . Actions | -11 -10 -10 -9 -9 -8 --------- Run | Yrd Mat Min Mat Sto Mat Total 2132 | 60 379 211 265 622 595 Wait 62 | . 3 10 . 40 9 Move 1718 | 43 349 186 226 477 437 Hop . | . . . . . . Pick Up 55 | 10 3 2 11 7 22 Fast Attach 9 | 2 1 . 4 . 2 Attach 31 | 4 . 1 2 3 21 Detach . | . . . . . . Swap 38 | 1 5 3 2 13 14 Drop 31 | . 2 1 11 6 11 Fire 181 | . 15 6 9 74 77 Melee . | . . . . . . Ram . | . . . . . . Kick 3 | . 1 2 . . . Crush 4 | . . . . 2 2 Escape Stasis . | . . . . . . Rewire . | . . . . . . Trap . | . . . . . . Miscellaneous . | . . . . . . Route ------- -11/Scrapyard -10/Materials (discovered 4 exits: Mat / *Min x2 / [*Sub]) -10/Mines (discovered 2 exits: *Mat x2) -9/Materials (discovered 2 exits: *Mat / *Sto) -9/Storage (discovered 2 exits: *Mat / [Rec]) -8/Materials History --------- Turn | Location | Event 15 | -11/Scrapyard | Discovered new exit (range 13) 58 | -11/Scrapyard | Entered Materials 104 | -10/Materials | Identified exit to Mines 104 | -10/Materials | Discovered new exit (range 16) 326 | -10/Materials | Discovered new exit (range 14) 330 | -10/Materials | Build established: Mutant 466 | -10/Materials | Entered Mines 524 | -10/Mines | Learned location of Zion (-7) 530 | -10/Mines | Assisted by bots powering up and referring to "LRC-V3" 560 | -10/Mines | Learned Materials terminal intel 613 | -10/Mines | Discovered new exit (range 11) 679 | -10/Mines | Discovered new exit (range 11) 690 | -10/Mines | Identified exit to Materials 691 | -10/Mines | Entered Materials 691 | -9/Materials | Accompanied by 3 allies 691 | -9/Materials | Evolved 2 slots: Propulsion x1, Utility x1 692 | -9/Materials | Loaded intel: 12 terminal locations 992 | -9/Materials | Discovered new exit (range 16) 1013 | -9/Materials | Discovered new exit (range 10) 1016 | -9/Materials | Identified exit to Storage 1035 | -9/Materials | Identified exit to Materials 1045 | -9/Materials | Entered Storage 1045 | -9/Storage | Accompanied by 1 ally 1178 | -9/Storage | Crushed by falling debris 1428 | -9/Storage | Discovered new exit (range 6) 1937 | -9/Storage | Destroyed 7 combat bots 1982 | -9/Storage | Discovered exit to Materials (range 15) 2026 | -9/Storage | Entered Materials 2026 | -8/Materials | Evolved 2 slots: Utility x1, Weapon x1 2163 | -8/Materials | Destroyed 7 combat bots 2427 | -8/Materials | Build established: Scavenger-Tank 2610 | -8/Materials | Garrison activated, responded to threat 2739 | -8/Materials | Lost 6 parts (1p3n1u1w) 2826 | -8/Materials | First assault squad dispatched 2984 | -8/Materials | Core integrity fell below 50% 3002 | -8/Materials | Core integrity fell below 20% 3030 | -8/Materials | Destroyed 9 combat bots 3034 | -8/Materials | Destroyed by G-47 Trooper with Particle Gun Last Messages --------------- 03002_ G-47 Trooper destroyed. 03003_ Mni. Grenade Launcher destroyed. 03004_ Critical hit (Burn: +37). 03004_ K-01 Serf collects debris. 03006_ The unstable cave ceiling collapses. 03009_ U-05 Engineer destroyed. 03009_ G-47 Trooper destroyed. 03009_ K-01 Serf collects debris. 03015_ G-47 Trooper knocked back. 03017_ K-01 Serf collects debris. 03019_ The unstable cave ceiling collapses. 03019_ Imp. Grenade Launcher destroyed. 03021_ Destroyed Lgt. Nuclear Core. 03021_ K-01 Serf collects debris. 03022_ The unstable cave ceiling collapses. 03024_ Destroyed Aluminum Leg. 03025_ R-06 Scavenger collects Welding Torch. 03032_ Assault Cannon destroyed. 03033_ U-05 Engineer lays Concrete. 03033_ K-01 Serf collects debris. Map ----- +----------------------------------------------------+ | ???#######?????????###### """ #???????# | | ????????????????????????# / #???????######### | | ????????????????????????########?#???############# | | ?????????????????????????????????????# ## | | ?????????????????????????????######### ## """" | | ?????????????????????????????# ## ## """" | | ?????????????????????????????# ## ## """" | | ?????????????????????????????# """ ## ## ! | | ?????????????????????????????# """ ## ## | | ?????????????????????????????# """ ## ## "Y" | | ?????????????????????????????# ####+## """ | | ?????????????????????????????#+##+##### # % | | ?????????????????????????????# T ####+##+ | | ?????????????????????????????#### ##### #??# % | | ???????????????+##??????????????# #???## ##??# % | | ????????????? ??????????????# #????# #???# | | ????????????? ;##?????????### ##???# ##### | | ???????????? # #???????# | #???# | | ????????????u| ????### %* #???# | | ????????????#%=g # ##### ###??# | | ??????????? #! g% % ==#??# | | ??????????? ; g [ =%#??########### | | ????????????# g* ! ## = "#??????????# | | ????????????# m=% =% k ""#??????????# | | ?????????????#%* = = %* ""#??????????# | | ?????????????# = %@ #??????????# | | ?????????????# % *## #####+#??????????# | | ?????????????# ; ## #?### #??????????# | | ?????????????# ; *%= #???????????????????# | | ?????????????# ;;;;;;;;;##???????????????????# | | ?????????????# ###;#i;###????????????????????### | | ?????????????# ??? ?????????????????????????? | | ????????????????? ?????????????????????????? | | ???????????????? ?????????????????????????? | | ???????????????#######+#?????????????????????????? | | ?????????????????????????????????????????????????? | | ?????????????????????????????????????????????????? | | ?????????????????????????????????????????????????? | | ?????????????????????????????????????????????????? | | ?????????????????????????????????????????????????? | | ?????????????????????????????????????????????????? | | ?????????????????????????????????????????????????? | | ?????????????????????????????????????????????????? | | ?????????????????????????????????????????????????? | | ?????????????????????????????????????????????????? | | ?????????????????????????????????????????????????? | | ?????????????????????????????????????????????????? | | ?????????????????????????????????????????????????? | | ?????????????????????????????????????????????????? | | ?????????????????????????????????????????????????? | +----------------------------------------------------+ Best States ------------- Heat Dissipation 45 Energy Generation 14 Energy Capacity 280 Matter Stores 300 Matter Capacity 300 Sight Range 16 Robot Scan Range 14 Terrain Scan Density 10 Armor Coverage 150 Evasion (%) 55 Core Analysis 6 Recoil Reduction 3 Item Schematics ----------------- None Robot Schematics ------------------ None Fabricated ------------ Nothing Repaired ---------- Nothing Alien Tech Used ----------------- None Achievements -------------- Everything Is Under Control Significant Disruption Unlikely Earthworm root@ Challenges ------------ None Game ------ Seed ShadingReactiveMachine Manual? 0 Play Time 00:46:12 Cumulative 19.1 hours Start 2025.06.02 @ 16:50:28 End 2025.06.02 @ 17:37:51 Sessions 1 Manual Loads 0 Difficulty Rogue Special Mode None Game No. 15 Rogue 15 Adventurer 0 Explorer 0 Win Type - Total 0 Types 0/0/0/0/0/0/0/0/0/0 Lore% 7 Gallery% 19 Achievement% 17 Wizard Run 0 Options --------- Layout 0 ASCII 0 Keyboard 0 Movement Mouse Keybinds 0 Fullscreen 2 Font 18/Smallcaps Map View 76x50 Zoom Use 0% Tactical HUD 1 Map Filters NONE Filters NONE Steam 1 RUN: f0fa1a8a-3111-409b-a5c2-5433d0e54357